Cogmind - Beta 15 @@@ ROGUE MODE // 2025.07.12 @ 18:12:34 Player: Wall-e Result: Self-destructed Performance ------------- Evolutions (7) 3500 Regions Visited (14) 2800 Robots Destroyed (156) 780 Value Destroyed (5379) 5379 Prototype IDs (25) 500 Alien Tech Used (1) 200 Bonus (835) 835 TOTAL SCORE: 13994 Bonus ------- High Alert Combat Kills 67 Follower Combat Kills 468 Met Zhirov 300 Cogmind --------- Core Integrity 1131/1300 Matter 300/300 Energy 2/100 System Corruption 3% Temperature Cool (0) Movement Hovering (111) Ox1 Location -3/Research Parts ------- > --- POWER (2) -------- (None) > --- PROPULSION (5) --- Antigrav System Improved Gyrokinetic Inverter > --- UTILITY (11) ----- Advanced Coolant Injector Large Storage Unit Gravity Neutralizer Advanced Visual Processing Unit Advanced Signal Interpreter Improved Melee Analysis Suite Advanced Actuator Array Advanced Hacking Suite Improved System Shield > --- WEAPON (3) ------- Katana > --- INVENTORY (15) --- Micro Fission Core Micro Fission Core Biometal Medium Treads Biometal Medium Treads Antigrav System Antigrav System Antigrav System Field Propulsion Array Electron Diverter Improved Heat Sink Gravity Neutralizer Advanced Thermal Shield Advanced Shield Generator Peak State ------------ > --- POWER ------------ Light Antimatter Reactor Light Antimatter Reactor > --- PROPULSION ------- Antigrav System Linear Gravjet Improved Gyrokinetic Inverter Improved Linear Gravjet Improved Linear Gravjet > --- UTILITY ---------- Advanced Coolant Injector Large Storage Unit Gravity Neutralizer Advanced Visual Processing Unit Advanced Signal Interpreter Improved Melee Analysis Suite Microactuators Advanced Actuator Array Advanced Hacking Suite Improved System Shield > --- WEAPON ----------- KE Penetrator Improved Datajack Katana > --- INVENTORY -------- Micro Fission Core Micro Fission Core Biometal Medium Treads Biometal Medium Treads Antigrav System Antigrav System Antigrav System Field Propulsion Array Electron Diverter Improved Heat Sink Gravity Neutralizer Advanced Thermal Shield Improved Shield Generator Advanced Shield Generator [Rating: 116] Favorites ----------- Power Deuterium Engine Engine Deuterium Engine Power Core Neutrino Core Reactor Light Antimatter Reactor Propulsion Advanced Treads Treads Advanced Treads Leg Aluminum Leg Wheel Armored Huge Wheel Hover Unit Antigrav System Flight Unit Electron Diverter Utility Improved Signal Interpreter Device Improved Sensor Array Storage Large Storage Unit Processor Improved Signal Interpreter Hackware Advanced Hacking Suite Protection Experimental Weapon Shielding Weapon Advanced Beam Rifle Energy Gun Advanced Beam Rifle Energy Cannon Heavy Proton Cannon Ballistic Gun Light Assault Rifle Ballistic Cannon Enhanced Gauss Cannon Launcher Rocket Launcher Special Weapon Mining Laser Impact Weapon Powered Hammer Slashing Weapon Axe Special Melee Weapon Improved Datajack Build | -11 -10 -9 -9 -8 -8 -7 -6 -5 -5 -5 -5 -4 -4 -3 ------- Run | Yrd Mat Mat Min Mat Sto Fac Fac Fac Upp Upp Zhi Pro Fac Res Slots Evolved 14 | . . 2 . 2 . 2 2 2 . . . . 2 2 Power 1 | . . . . . . 1 . . . . . . . . Propulsion 3 | . . 1 . 1 . . 1 . . . . . . . Utility 9 | . . 1 . 1 . 1 1 2 . . . . 1 2 Weapon 1 | . . . . . . . . . . . . . 1 . Parts Attached 189 | 7 12 28 1 3 14 30 12 28 1 5 6 1 31 10 Power 36 | 1 3 4 . . 3 8 2 8 . 1 2 . 4 . Engine 19 | 1 3 4 . . 3 3 1 2 . 1 1 . . . Core 13 | . . . . . . 5 1 5 . . . . 2 . Reactor 4 | . . . . . . . . 1 . . 1 . 2 . Propulsion 60 | 2 . 13 . 1 3 9 5 6 1 1 . . 14 5 Treads 24 | 2 . 8 . 1 2 5 . 4 . . . . 2 . Leg 4 | . . . . . . 3 . . 1 . . . . . Wheel 5 | . . 2 . . . 1 . . . 1 . . 1 . Hover 26 | . . 3 . . 1 . 5 2 . . . . 11 4 Flight 1 | . . . . . . . . . . . . . . 1 Utility 52 | 2 2 4 1 1 2 6 4 8 . 3 3 1 11 4 Device 29 | 1 1 1 . . 1 4 2 7 . 2 1 1 5 3 Storage 6 | 1 1 1 . . . . . . . . . . 2 1 Processor 10 | . . . 1 1 1 1 1 1 . 1 . . 3 . Hackware 3 | . . . . . . 1 . . . . 1 . 1 . Protection 4 | . . 2 . . . . 1 . . . 1 . . . Artifact . | . . . . . . . . . . . . . . . Weapon 41 | 2 7 7 . 1 6 7 1 6 . . 1 . 2 1 Energy Gun 9 | 1 . . . 1 2 4 1 . . . . . . . Energy Cannon 9 | . 3 1 . . 1 . . 4 . . . . . . Ballistic Gun 10 | 1 3 5 . . . . . . . . . . . 1 Ballistic Cannon 6 | . . . . . 1 2 . 2 . . . . 1 . Launcher 2 | . . 1 . . 1 . . . . . . . . . Special Weapon 1 | . 1 . . . . . . . . . . . . . Impact Weapon 1 | . . . . . . 1 . . . . . . . . Slashing Weapon 2 | . . . . . 1 . . . . . 1 . . . Piercing Weapon . | . . . . . . . . . . . . . . . Special Melee Weapon 1 | . . . . . . . . . . . . . 1 . Unidentified Prototypes 15 | . . . . 1 6 1 3 1 . . . 1 . 2 Corrupted Parts 2 | . . . . . . . 1 1 . . . . . . System Corruption 3 | . . . . . . . 1 2 . . . . . . Parts Lost 82 | . 1 10 . 2 6 13 3 22 5 . . . 10 10 Power 17 | . . 3 . . . 5 1 5 . . . . 1 2 Propulsion 36 | . . 4 . 1 5 6 1 6 3 . . . 6 4 Utility 20 | . . 2 . 1 1 1 1 7 2 . . . 3 2 Weapon 9 | . 1 1 . . . 1 . 4 . . . . . 2 Highest Loss Streak 10 | . 1 3 . 2 4 3 1 8 3 . . . 4 10 To Critical Strikes 2 | . . 1 . . . 1 . . . . . . . . Average Backups 10 | 2 6 9 14 12 13 12 13 11 13 4 4 4 8 12 Power 1 | . . . 1 1 1 . 1 1 1 . . . 1 1 Propulsion 2 | 1 2 3 4 3 2 3 2 1 . . . . 2 5 Utility 3 | . 2 3 6 6 5 3 2 1 2 1 1 1 4 4 Weapon 3 | . 1 1 2 2 3 4 6 7 8 3 2 2 . . Tool/Special . | . . . . . . . . . . . . . . . Unused Backups 34 | . 6 1 1 . 3 4 2 1 5 . . . 2 9 Power 6 | . 2 1 1 . 1 . . . . . . . . 1 Propulsion 10 | . 2 . . . . 1 2 . 1 . . . . 4 Utility 9 | . . . . . 1 3 . . 1 . . . . 4 Weapon 9 | . 2 . . . 1 . . 1 3 . . . 2 . Tool/Special . | . . . . . . . . . . . . . . . Average Slot Usage (%) 87 | . 99 86 90 90 90 91 89 85 89 49 58 67 85 88 Engine 6 | . 14 10 11 9 8 5 3 3 . 3 5 5 2 . Core 3 | . . . . . . 8 7 4 4 . . . 2 1 Reactor 1 | . . . . . . . . 1 4 . 2 5 5 7 Treads 14 | . 28 19 33 31 22 14 1 8 10 . . . 6 . Wheel 1 | . . 2 . . . 1 . . . 4 5 5 4 . Hover 5 | . . 1 . . 5 4 28 11 4 . . . 7 22 Device 15 | . 13 18 . . 8 12 20 17 22 17 21 26 19 16 Storage 7 | . 14 11 11 9 9 7 6 4 4 . . . 4 4 Processor 10 | . . . 2 17 18 15 9 14 17 22 13 5 7 14 Hackware 1 | . . . . . . 1 . . . . 2 5 9 9 Protection 1 | . . 2 11 5 . . 1 1 . . 2 5 4 . Energy Gun 2 | . 3 . . . 1 9 3 . . . . . . . Energy Cannon 2 | . 7 5 . 5 6 . . 4 . . . . . . Ballistic Gun 3 | . 16 14 11 3 1 . . . . . . . . 2 Ballistic Cannon 2 | . . . . . . . . 5 10 . . . 4 . Slashing Weapon 2 | . . . . . 7 3 . . . . 1 5 5 4 Peak Build Rating 116 | 9 12 21 24 28 35 50 64 82 76 48 63 66 104 116 Average Rating 47 | 5 10 12 21 24 31 41 55 69 72 38 54 64 91 106 On Entrance 38 | . 9 11 21 24 22 18 48 56 72 17 48 63 66 99 Naked Turns . | . . . . . . . . . . . . . . . Heaviest Build 135 | 13 32 38 39 39 39 49 51 77 62 29 44 46 135 64 Greatest Support 90 | 40 40 66 66 88 66 88 51 90 58 28 28 28 55 64 Greatest Overweight (x) 7 | 2 . 3 . . 7 3 1 2 2 1 1 1 4 2 Average Overweight (x) . | . . . . . . . . . . . . 1 1 . Largest Inventory Capacity 25 | 8 15 15 15 15 15 15 15 15 15 5 5 5 25 15 Average Capacity 13 | 7 9 15 15 15 15 15 15 14 14 5 5 5 18 14 Most Carried 16 | 4 8 15 15 14 15 15 15 15 14 5 5 5 16 15 Average Carried 10 | 2 6 9 14 13 14 12 13 11 13 4 4 4 8 13 Final Capacity 15 | 8 15 15 15 15 15 15 15 15 5 5 5 5 10 15 Final Carried 15 | 4 8 15 15 13 12 15 15 14 5 5 4 5 6 14 Class Distribution -------------------- 78% | Mutant 7% | Hacker-Mutant 4% | Commander-Assassin 4% | Assassin 3% | Scavenger-Mutant Dominant Class ---------------- Mutant | -10/Materials Mutant | -9/Materials Mutant | -9/Mines Mutant | -8/Materials Commander-Assassin | -8/Storage Mutant | -7/Factory Mutant | -6/Factory Mutant | -5/Factory Mutant | -5/Upper Caves Mutant | -5/Upper Caves Mutant | -5/Zhirov Mutant | -4/Proximity Caves Hacker-Mutant | -4/Factory Hacker-Mutant | -3/Research Resources | -11 -10 -9 -9 -8 -8 -7 -6 -5 -5 -5 -5 -4 -4 -3 ----------- Run | Yrd Mat Mat Min Mat Sto Fac Fac Fac Upp Upp Zhi Pro Fac Res Matter Collected 4156 | 265 238 688 169 104 306 421 74 814 105 138 267 74 317 176 Remotely . | . . . . . . . . . . . . . . . Salvage Created 6512 | 24 491 1065 . 110 839 1141 124 1121 . . 299 83 990 225 Parts 302 | 5 39 62 . 4 45 38 1 36 . . 3 1 52 16 Haulers Intercepted 2 | . . 1 . . . . . 1 . . . . . . Recyclers Shooed 6 | . . 2 . . . . . 3 . . . . 1 . Parts Field Recycled . | . . . . . . . . . . . . . . . Retrieved Matter . | . . . . . . . . . . . . . . . Parts Self-Destructed 1 | . . . . . . . . . . . 1 . . . Prevented . | . . . . . . . . . . . . . . . Kills | -11 -10 -9 -9 -8 -8 -7 -6 -5 -5 -5 -5 -4 -4 -3 ------- Run | Yrd Mat Mat Min Mat Sto Fac Fac Fac Upp Upp Zhi Pro Fac Res Combat Hostiles Destroyed 112 | . 13 26 . 2 16 20 1 21 . . . 1 10 2 Melee 21 | . . . . . 6 2 . . . . . 1 10 2 Guns 36 | . 6 14 . . 3 13 . . . . . . . . Cannons 39 | . 7 9 . 2 . 2 . 19 . . . . . . AOE 9 | . . 3 . . 5 . . 1 . . . . . . Classes Destroyed 16 | 1 4 7 . . 2 2 . . . . . . . . Worker 14 | . . 3 . . 2 1 2 2 . . . . . 4 Builder 5 | . . 2 . . 1 . 1 . . . . . 1 . Tunneler 2 | 2 . . . . . . . . . . . . . . Hauler 2 | . . 1 . . . . . 1 . . . . . . Recycler 11 | . . 1 . 1 1 2 . 2 . . . . 4 . Operator 2 | . 1 . . . 1 . . . . . . . . . Watcher 8 | . 3 2 . . . . 1 1 . . . . 1 . Swarmer 29 | . 6 8 . . 1 3 . 7 . . . . 4 . Grunt 38 | . 7 8 . 2 9 8 . 4 . . . . . . Brawler 2 | . . 1 . . . 1 . . . . . . . . Duelist 6 | . . 2 . . 2 2 . . . . . . . . Protector 2 | . . . . . 2 . . . . . . . . . Sentry 10 | . . 7 . . 1 1 . . . . . 1 . . Demolisher 1 | . . . . . 1 . . . . . . . . . Hunter 4 | . . . . . . 1 . 3 . . . . . . Programmer 20 | . . . . . . 4 1 7 . . . . 6 2 Best Kill Streak 14 | 2 4 14 . 2 10 3 2 4 . . . 1 4 3 Combat Bots Only 9 | . 4 7 . 1 9 3 1 4 . . . 1 4 1 Max Kills in Single Turn 3 | 1 1 2 . 1 3 2 1 2 . . . 1 1 1 Gunslinging . | . . . . . . . . . . . . . . . Exploded 2 | . . 1 . . 2 . . 1 . . . . . . Melee 1 | . . . . . 1 1 . . . . . 1 1 1 Uniques/NPCs Destroyed . | . . . . . . . . . . . . . . . Combat | -11 -10 -9 -9 -8 -8 -7 -6 -5 -5 -5 -5 -4 -4 -3 -------- Run | Yrd Mat Mat Min Mat Sto Fac Fac Fac Upp Upp Zhi Pro Fac Res Hostile Shots Fired 1149 | . 82 192 . 39 78 226 85 223 29 . . 13 114 68 Missed 386 | . 30 70 . 12 28 55 43 77 13 . . 5 31 22 Hits 763 | . 52 122 . 27 50 171 42 146 16 . . 8 83 46 Melee 32 | . . 15 . . 8 9 . . . . . . . . Projectile 731 | . 52 107 . 27 42 162 42 146 16 . . 8 83 46 AOE 8 | . . . . . 7 . . . . . . . . 1 Critical Strikes 42 | . 1 6 . 1 5 13 3 7 . . . 1 . 5 Part Disruptions 3 | . . . . . . 1 . 1 . . . . 1 . Damage Taken 12720 | . 588 1657 . 454 1206 2421 702 2845 438 . . 55 1384 970 Core 1869 | . 74 237 . 79 425 386 124 182 26 . . . 167 169 Absorbed by Shields 865 | . . . . . . 104 . . . . . 58 522 181 Redirected to Shielding 160 | . . . . . . . . . . . . . 160 . Regen/Repaired (Parts) 701 | . 5 137 . . 135 159 . 265 . . . . . . Core Remaining (%) 63 | 100 70 . 40 . 8 44 85 . . . . 79 85 . Volleys Fired 444 | 3 65 120 1 23 26 96 4 101 2 . . . 3 . Largest 2 | 1 2 2 1 1 2 2 1 2 2 . . . 1 . Hottest 162 | 20 100 60 23 60 84 141 75 162 94 . . . 47 . Shots Fired 647 | 3 106 172 1 23 32 149 5 148 5 . . . 3 . Gun 336 | 3 60 104 1 2 23 139 4 . . . . . . . Cannon 287 | . 42 58 . 17 3 10 1 148 5 . . . 3 . Launcher 20 | . . 10 . 4 6 . . . . . . . . . Special 4 | . 4 . . . . . . . . . . . . . Kinetic 289 | 3 60 104 1 . 7 10 1 95 5 . . . 3 . Thermal 255 | . 29 58 . 17 19 128 4 . . . . . . . Explosive 16 | . . 10 . 4 2 . . . . . . . . . Electromagnetic 87 | . 17 . . 2 4 11 . 53 . . . . . . Robot Hit Streak 17 | 2 9 17 . 4 7 9 1 7 . . . . 1 . Robot Miss Streak 6 | 1 6 4 1 4 2 4 3 3 . . . . 1 . Penetration Max 1 | . . . . . . . . 1 . . . . . . Secondary Targets 2 | . 1 . . . . 1 . . . . . . . . Max Gunslinging Chain 1 | . 1 . . . . 1 . . . . . . . . Shots Hit Robots 506 | 2 53 121 . 9 49 99 11 83 . . 7 2 46 24 Core Hits 239 | 1 24 55 . 6 31 38 . 43 . . 3 2 27 9 Critical Kills 1 | . . 1 . . . . . . . . . . . . Critical Parts Destroyed 3 | . . . . . . . 3 . . . . . . . Critical Strikes 51 | . . 1 . . 4 13 3 17 . . . . 8 5 Burn 12 | . . . . . 1 11 . . . . . . . . Destroy 1 | . . 1 . . . . . . . . . . . . Blast 15 | . . . . . . . . 14 . . . . 1 . Corrupt 3 | . . . . . . . . 3 . . . . . . Smash 3 | . . . . . . . 3 . . . . . . . Sever 17 | . . . . . 3 2 . . . . . . 7 5 Melee Attacks 232 | . . . . . 50 37 11 . . . 7 10 83 34 Impact 27 | . . . . . . 16 11 . . . . . . . Slashing 205 | . . . . . 50 21 . . . . 7 10 83 34 Piercing . | . . . . . . . . . . . . . . . Sneak Attacks 21 | . . . . . 7 . 3 . . . . . 6 5 Combat Hostiles . | . . . . . . . . . . . . . . . Follow-up Attacks . | . . . . . . . . . . . . . . . Damage Inflicted 16238 | 26 738 2537 . 414 2665 2303 650 3681 . . 428 63 1748 985 Guns 3590 | 24 253 1116 . . 302 1872 23 . . . . . . . Cannons 4784 | . 485 822 . 143 . 193 26 3042 . . . . 73 . Explosions 2584 | . . 599 . 271 1083 . . 631 . . . . . . Melee 5270 | . . . . . 1280 238 601 . . . 428 63 1675 985 Ramming 10 | 2 . . . . . . . 8 . . . . . . Kinetic 3777 | 24 253 1116 . . 42 193 26 2050 . . . . 73 . Thermal 3855 | . 282 822 . 143 648 1750 23 187 . . . . . . Explosive 1244 | . . 599 . 271 . . . 374 . . . . . . Electromagnetic 2082 | . 203 . . . 695 122 . 1062 . . . . . . Impact 601 | . . . . . . . 601 . . . . . . . Slashing 4669 | . . . . . 1280 238 . . . . 428 63 1675 985 Piercing . | . . . . . . . . . . . . . . . Highest Corruption 10 | . . . . . 1 2 2 10 10 10 10 10 10 3 Average Corruption 5 | . . . . . 1 1 1 3 10 10 10 10 3 2 Corruption Purged . | . . . . . . . . . . . . . . . Corruption Blocked . | . . . . . . . . . . . . . . . Effects 172 | . . . . . . 30 4 42 35 11 9 17 22 2 Message Errors 40 | . . . . . . 7 . 7 8 3 2 4 8 1 Matter Fused 44 | . . . . . . 6 . 11 9 2 3 6 7 . Heat Flow Errors 19 | . . . . . . 3 2 5 3 1 . 3 2 . Energy Discharges 22 | . . . . . . 6 1 5 2 1 2 3 2 . Parts Rejected 2 | . . . . . . 1 . 1 . . . . . . Parts Fused 2 | . . . . . . . . . . . . . 2 . Data Loss (minor) 21 | . . . . . . . . 6 8 3 2 1 . 1 Data Loss (major) 5 | . . . . . . 1 . 2 2 . . . . . Misfires 9 | . . . . . . 4 1 3 1 . . . . . Alerts 4 | . . . . . . 1 . 1 1 1 . . . . Misdirections 2 | . . . . . . . . . 1 . . . 1 . Weapon Failures 2 | . . . . . . 1 . 1 . . . . . . Overload Shots . | . . . . . . . . . . . . . . . Overflow Damage 938 | . 4 8 . . 117 . 409 171 . . 101 . 70 58 Projectiles 103 | . 4 . . . . . . 99 . . . . . . Explosions 86 | . . 8 . . 6 . . 72 . . . . . . Melee 749 | . . . . . 111 . 409 . . . 101 . 70 58 Knockbacks 42 | . . . . . . 3 5 34 . . . . . . Impact 5 | . . . . . . . 4 1 . . . . . . Kinetic 36 | . . . . . . 3 1 32 . . . . . . Secondary 1 | . . . . . . . . 1 . . . . . . Self-Inflicted Damage 445 | . . 32 . 41 101 . . 271 . . . . . . Shots 10 | . . 1 . 2 4 . . 3 . . . . . . Rammed 2 | 1 . . . . . . . 1 . . . . . . Targets Rammed 3 | 2 . . . . . . . 1 . . . . . . Kicked . | . . . . . . . . . . . . . . . Crushed 1 | 1 . . . . . . . . . . . . . . Highest Temperature 418 | . 236 198 6 281 234 235 172 418 255 150 . 197 147 . Average Temperature 73 | . 62 57 6 89 98 68 91 80 84 88 . 87 68 . Received Heat Transfer 2515 | . 213 417 . 207 333 767 93 286 72 . . 8 18 101 Effects 9 | . 3 . . 4 . . . 2 . . . . . . Shutdowns 2 | . . . . . . . . 2 . . . . . . Interference 7 | . 3 . . 4 . . . . . . . . . . Siege Activations . | . . . . . . . . . . . . . . . Martial Activations . | . . . . . . . . . . . . . . . Shielding Activations . | . . . . . . . . . . . . . . . Robots Disrupted 1 | . . . . . . 1 . . . . . . . . Combat Hostiles 1 | . . . . . . 1 . . . . . . . . Robots Corrupted 9 | . . . . . 2 1 3 3 . . . . . . Combat Hostiles 5 | . . . . . 2 1 1 1 . . . . . . Parts Fried 19 | . . . . . 6 1 2 10 . . . . . . Impact Corruptions 16 | . . . . . . . 16 . . . . . . . Robots Melted 2 | . . . . . . 2 . . . . . . . . Combat Hostiles 2 | . . . . . . 2 . . . . . . . . Parts Melted 17 | . . 5 . . . 12 . . . . . . . . Heat Transferred 7633 | . 592 1739 . 296 967 3889 50 100 . . . . . . Parts Sabotaged . | . . . . . . . . . . . . . . . Parts Stolen . | . . . . . . . . . . . . . . . Parts Stripped . | . . . . . . . . . . . . . . . Power Chain Reactions 4 | . . . . . 4 . . . . . . . . . Alert | -11 -10 -9 -9 -8 -8 -7 -6 -5 -5 -5 -5 -4 -4 -3 ------- Run | Yrd Mat Mat Min Mat Sto Fac Fac Fac Upp Upp Zhi Pro Fac Res Maximum Alert Level 2 | . . 2 . . 2 1 1 2 . . . . . . Low Security (%) 80 | 100 100 93 100 100 49 98 59 49 . . . . 100 100 Level 1 15 | . . 4 . . 37 1 40 42 . . . . . . Level 2 3 | . . 2 . . 13 . . 8 . . . . . . Level 3 . | . . . . . . . . . . . . . . . Level 4 . | . . . . . . . . . . . . . . . Level 5 . | . . . . . . . . . . . . . . . High Security . | . . . . . . . . . . . . . . . Max Security . | . . . . . . . . . . . . . . . Peak Influence 474 | 5 169 446 172 25 474 213 253 418 . . . . 168 97 Initial 213 | . . . 172 19 . 213 92 98 . . . . . 61 Average 118 | . 54 73 83 11 193 72 162 227 . . . . 59 60 Influence Increases 5376 | 10 376 873 136 75 1194 617 336 1084 30 15 5 35 454 136 Destroy 0b10 Robot/C 2640 | . 260 520 100 40 620 400 20 420 . . . 20 200 40 Destroy 0b10 Robot/NC 250 | 10 20 45 . 5 50 15 20 30 . . 5 . 30 20 Destroy Leader 582 | . 56 146 20 . 122 80 12 84 . . . . 52 10 Allied During Kill 212 | . . . 16 . 196 . . . . . . . . . Successful Hack 231 | . 23 28 . . 35 39 12 20 . . . . 8 66 Disable Machine 405 | . 15 30 . . 90 15 . 225 . . . . 30 . Destroy Structure 396 | . 2 89 . 30 36 23 2 170 . . . . 44 . Partial Spotted 90 | . . . . . . . 60 15 . . . . 15 . Lose Combat Pursuer 570 | . . 15 . . 45 45 210 120 30 15 . 15 75 . Influence Decreases 5376 | 10 376 431 528 125 724 898 325 915 369 45 5 35 336 254 Entered New Map 957 | . . . 270 31 . 257 97 102 137 6 . . . 57 Time Decay 3456 | 10 366 376 198 63 444 541 198 593 232 39 5 35 236 120 Lost Part 657 | . 10 40 . 20 60 100 30 220 . . . . 100 77 Lost Ally 306 | . . 15 60 11 220 . . . . . . . . . Squads Dispatched 31 | . 2 3 . . 6 8 5 3 . . . . 4 . Investigation 7 | . 1 2 . . . 2 1 . . . . . 1 . Extermination 10 | . . . . . . 4 1 3 . . . . 2 . Reinforcement 9 | . 1 1 . . 1 2 3 . . . . . 1 . Assault 2 | . . . . . 2 . . . . . . . . . Garrison 3 | . . . . . 3 . . . . . . . . . Intercept . | . . . . . . . . . . . . . . . Searches Triggered . | . . . . . . . . . . . . . . . Construction Impeded 2 | . . 1 . . . . 1 . . . . . . . Haulers Reinforced . | . . . . . . . . . . . . . . . Active Scanning Responses . | . . . . . . . . . . . . . . . Cargo Convoy Interrupts . | . . . . . . . . . . . . . . . Stealth | -11 -10 -9 -9 -8 -8 -7 -6 -5 -5 -5 -5 -4 -4 -3 --------- Run | Yrd Mat Mat Min Mat Sto Fac Fac Fac Upp Upp Zhi Pro Fac Res Distress Signals 13 | . 2 4 . . 4 1 1 . . . . . 1 . Communications Jammed . | . . . . . . . . . . . . . . . Distress Signals . | . . . . . . . . . . . . . . . Times Spotted 226 | . 22 37 2 7 30 34 22 31 6 1 . 2 24 8 Peak Tracking Total 12 | . 5 8 2 4 12 4 8 4 9 1 . 1 5 6 Tactical Retreats 29 | . . 1 . . 3 1 7 9 3 1 . 1 3 . Traps | -11 -10 -9 -9 -8 -8 -7 -6 -5 -5 -5 -5 -4 -4 -3 ------- Run | Yrd Mat Mat Min Mat Sto Fac Fac Fac Upp Upp Zhi Pro Fac Res Traps Triggered 10 | . 2 2 . . 1 1 1 . . . . . 3 . Indirectly . | . . . . . . . . . . . . . . . Trap Hack Attempts . | . . . . . . . . . . . . . . . Triggered . | . . . . . . . . . . . . . . . Disarmed . | . . . . . . . . . . . . . . . Reprogrammed . | . . . . . . . . . . . . . . . Reused . | . . . . . . . . . . . . . . . Traps Extracted . | . . . . . . . . . . . . . . . Installed . | . . . . . . . . . . . . . . . Triggered . | . . . . . . . . . . . . . . . Machines | -11 -10 -9 -9 -8 -8 -7 -6 -5 -5 -5 -5 -4 -4 -3 ---------- Run | Yrd Mat Mat Min Mat Sto Fac Fac Fac Upp Upp Zhi Pro Fac Res Machines Disabled 27 | . 1 2 . . 6 1 . 15 . . . . 2 . Max in Single Turn 6 | . 1 1 . . 2 1 . 6 . . . . 1 . Garrison Access 4 | . . . . . 1 1 1 . . . . . 1 . Machines Repaired . | . . . . . . . . . . . . . . . Machines Dismantled . | . . . . . . . . . . . . . . . Machines Sabotaged . | . . . . . . . . . . . . . . . Overloaded Fab Kills . | . . . . . . . . . . . . . . . Hacking | -11 -10 -9 -9 -8 -8 -7 -6 -5 -5 -5 -5 -4 -4 -3 --------- Run | Yrd Mat Mat Min Mat Sto Fac Fac Fac Upp Upp Zhi Pro Fac Res Machines Accessed 54 | . 6 9 . 1 9 8 3 4 . 1 9 . 2 2 Terminals 28 | . 5 7 . . 6 6 1 2 . . . . . 1 Fabricators . | . . . . . . . . . . . . . . . Repair Stations 8 | . 1 1 . . 2 1 1 2 . . . . . . Recycling Units 1 | . . . . 1 . . . . . . . . . . Scanalyzers 3 | . . 1 . . . . . . . . . . 1 1 Garrison Access 4 | . . . . . 1 1 1 . . . . . 1 . Total Hacks 184 | . 21 34 . 3 35 18 8 7 . 1 48 . 4 5 Successful 128 | . 12 21 . 2 25 7 2 5 . 1 48 . 2 3 Failed 56 | . 9 13 . 1 10 11 6 2 . . . . 2 2 Catastrophic 5 | . 1 1 . . . 2 . 1 . . . . . . Database Lockouts . | . . . . . . . . . . . . . . . Manual 81 | . 18 26 . 2 23 7 1 3 . . . . . 1 Terminals 98 | . 19 30 . . 27 13 2 3 . . . . . 4 Fabricators . | . . . . . . . . . . . . . . . Repair Stations 20 | . 2 2 . . 5 3 4 4 . . . . . . Recycling Units 3 | . . . . 3 . . . . . . . . . . Scanalyzers 6 | . . 2 . . . . . . . . . . 3 1 Garrison Access 8 | . . . . . 3 2 2 . . . . . 1 . Terminal Hacks 68 | . 2 4 . . 8 3 . . . 1 48 . . 2 Record 36 | . . . . . . . . . . . 36 . . . Part Schematic 5 | . . . . . . . . . . . 4 . . 1 Robot Analysis 6 | . . 1 . . . 1 . . . . 4 . . . Prototype ID Bank 4 | . . . . . . . . . . . 4 . . . Open Door 1 | . . . . . . . . . . 1 . . . . Open DSF 1 | . . . . . . 1 . . . . . . . . Level Access Points 1 | . . . . . . 1 . . . . . . . . Emergency Access Points 1 | . 1 . . . . . . . . . . . . . Locate Traps 2 | . 1 . . . 1 . . . . . . . . . Dispatch Records 1 | . . 1 . . . . . . . . . . . . Maintenance Status 1 | . . 1 . . . . . . . . . . . . Recall Investigation 1 | . . 1 . . . . . . . . . . . . Zone Layout 8 | . . . . . 7 . . . . . . . . 1 Fabricator Hacks . | . . . . . . . . . . . . . . . Repair Station Hacks 15 | . 2 2 . . 4 2 1 4 . . . . . . Scan Component 8 | . 1 1 . . 2 1 1 2 . . . . . . Repair 7 | . 1 1 . . 2 1 . 2 . . . . . . Recycling Unit Hacks 1 | . . . . 1 . . . . . . . . . . Process 1 | . . . . 1 . . . . . . . . . . Scanalyzer 3 | . . 2 . . . . . . . . . . 1 . Insert Component 2 | . . 1 . . . . . . . . . . 1 . Analyze 1 | . . 1 . . . . . . . . . . . . Garrison Access Hacks 4 | . . . . . 1 1 1 . . . . . 1 . Seal Access 4 | . . . . . 1 1 1 . . . . . 1 . Unauthorized Hacks 37 | . 8 13 . 1 12 1 . 1 . . . . . 1 Terminals 36 | . 8 13 . . 12 1 . 1 . . . . . 1 Track 7 | . 2 1 . . 4 . . . . . . . . . Assimilate 3 | . . 3 . . . . . . . . . . . . Botnet 21 | . 5 7 . . 6 1 . 1 . . . . . 1 Disrupt 2 | . . 1 . . 1 . . . . . . . . . Operators 3 | . 1 1 . . 1 . . . . . . . . . Fabricators . | . . . . . . . . . . . . . . . Repair Stations . | . . . . . . . . . . . . . . . Recycling Units 1 | . . . . 1 . . . . . . . . . . Reject 1 | . . . . 1 . . . . . . . . . . Scanalyzers . | . . . . . . . . . . . . . . . Garrison Access . | . . . . . . . . . . . . . . . Data Cores Recovered . | . . . . . . . . . . . . . . . Used . | . . . . . . . . . . . . . . . Hacking Detections 39 | . 6 9 . 1 8 7 2 3 . . . . 1 2 Full Trace Events 5 | . . . . . 1 2 1 . . . . . 1 . Feedback Events 1 | . . . . . . . . . . . . . 1 . Corruption 1 | . . . . . . . . . . . . . 1 . Feedback Blocked . | . . . . . . . . . . . . . . . Robot Schematics Acquired . | . . . . . . . . . . . . . . . Robots Built . | . . . . . . . . . . . . . . . Authchips . | . . . . . . . . . . . . . . . Time . | . . . . . . . . . . . . . . . Total Robot Build Rating . | . . . . . . . . . . . . . . . Part Schematics Acquired 6 | . . 1 . . . . . . . . 4 . . 1 Parts Built . | . . . . . . . . . . . . . . . Authchips . | . . . . . . . . . . . . . . . Time . | . . . . . . . . . . . . . . . Total Part Build Rating . | . . . . . . . . . . . . . . . Parts Repaired 7 | . 1 1 . . 2 1 . 2 . . . . . . Time 248 | . 38 26 . . 64 38 . 82 . . . . . . Parts Recycled . | . . . . . . . . . . . . . . . Recycled Matter 9 | . . . . 9 . . . . . . . . . . Retrieved Matter . | . . . . . . . . . . . . . . . Retrieved Components . | . . . . . . . . . . . . . . . Parts Scanalyzed 2 | . . 1 . . . . . . . . . . 1 . Part Schematics Acquired 1 | . . 1 . . . . . . . . . . . . Parts Damaged . | . . . . . . . . . . . . . . . Bothacking | -11 -10 -9 -9 -8 -8 -7 -6 -5 -5 -5 -5 -4 -4 -3 ------------ Run | Yrd Mat Mat Min Mat Sto Fac Fac Fac Upp Upp Zhi Pro Fac Res Used RIF Installer . | . . . . . . . . . . . . . . . Robots Hacked . | . . . . . . . . . . . . . . . Non-combat . | . . . . . . . . . . . . . . . Combat . | . . . . . . . . . . . . . . . Robot Hacks Applied . | . . . . . . . . . . . . . . . Relay Couplers Released . | . . . . . . . . . . . . . . . Fabnet Peak Effective % . | . . . . . . . . . . . . . . . Robots Rewired . | . . . . . . . . . . . . . . . Allies Hacked . | . . . . . . . . . . . . . . . Hacks Repelled . | . . . . . . . . . . . . . . . Allies | -11 -10 -9 -9 -8 -8 -7 -6 -5 -5 -5 -5 -4 -4 -3 -------- Run | Yrd Mat Mat Min Mat Sto Fac Fac Fac Upp Upp Zhi Pro Fac Res Total Allies 19 | . . 2 5 . 12 . . . . . . . . . Largest Group 10 | . . 1 5 2 10 . . . . . . . . . Highest-Rated Group 173 | . . 10 88 39 173 . . . . . . . . . Highest-Rated Ally 31 | . . 10 31 31 31 . . . . . . . . . Total Orders . | . . . . . . . . . . . . . . . Ally Attacks 125 | . . . 29 5 91 . . . . . . . . . Total Damage 1476 | . . . 281 34 1161 . . . . . . . . . Kills 26 | . . . 5 1 20 . . . . . . . . . Allies Corrupted . | . . . . . . . . . . . . . . . Allies Melted . | . . . . . . . . . . . . . . . Intel | -11 -10 -9 -9 -8 -8 -7 -6 -5 -5 -5 -5 -4 -4 -3 ------- Run | Yrd Mat Mat Min Mat Sto Fac Fac Fac Upp Upp Zhi Pro Fac Res Active Infowar (turns) 11851 | 25 1155 1134 83 89 1463 1850 311 2298 941 404 268 551 1025 254 Optics 3319 | . . . 83 89 1462 1224 . . . . . . 207 254 Sensors 8758 | . . 1134 . . 1407 626 311 2298 941 404 268 551 818 . Terrain 1203 | 25 1155 23 . . . . . . . . . . . . ECM 1973 | . . . . . . . . 809 941 223 . . . . Robot Analysis Total 6 | . . 1 . . . 1 . . . . 4 . . . Derelict Logs Recovered 5 | . . . 3 . . . . . . 1 . 1 . . Drone Launches . | . . . . . . . . . . . . . . . Drone Recoveries . | . . . . . . . . . . . . . . . Exploration | -11 -10 -9 -9 -8 -8 -7 -6 -5 -5 -5 -5 -4 -4 -3 ------------- Run | Yrd Mat Mat Min Mat Sto Fac Fac Fac Upp Upp Zhi Pro Fac Res Turns Passed 13594 | 117 1428 1241 416 160 1504 2451 413 2298 952 412 268 551 1129 254 Spaces Moved 7122 | 63 695 508 227 57 547 1154 536 906 428 414 181 398 692 316 Core 205 | 12 . . . . 2 . . . 57 134 . . . . Treads 3564 | 51 695 423 227 57 539 544 . 657 371 . . . . . Legs 85 | . . . . . . 85 . . . . . . . . Wheels 1695 | . . 72 . . . 343 . . . 280 181 398 421 . Hover 1573 | . . 13 . . 6 182 536 249 . . . . 271 316 Flight . | . . . . . . . . . . . . . . . Fastest Speed 34 | 50 160 105 145 145 112 115 36 98 50 50 100 115 40 34 Average Speed 140 | 150 160 161 145 145 164 155 58 186 218 87 114 115 109 37 Slowest Speed 400 | 160 160 240 145 145 400 330 102 320 320 115 115 115 160 200 Overloaded Moves . | . . . . . . . . . . . . . . . Propulsion Burnouts . | . . . . . . . . . . . . . . . Robots Hopped . | . . . . . . . . . . . . . . . Potential Cave-ins 8 | . . . . . . . . . . . . 5 3 . Cave-ins Triggered 1 | . . . . . . . . . . . . . 1 . Exploration Rate (%) 41 | 4 96 53 51 9 79 34 24 18 49 63 62 59 15 9 Regions Visited 14 Branch Regions 6 Pre-discovered Areas 3 | . . . . . . . . . . . 3 . . . Known Exits Taken 9 | . . . . . 1 1 1 1 1 1 1 1 1 . Unknown Exits Taken 5 | 1 1 1 1 1 . . . . . . . . . . Scrap Searched 8 | . . . 1 . . . . . 1 3 . 3 . . Spaces Dug 68 | . 1 . . . 7 20 2 2 4 . . 8 24 . Terrain Destroyed 320 | . 1 97 . 35 36 21 2 91 4 . . 8 25 . Melee 60 | . . . . . 7 19 2 . . . . 8 24 . Projectile 31 | . 1 . . . . 2 . 23 4 . . . 1 . AOE 229 | . . 97 . 35 29 . . 68 . . . . . . Terrain Rammed . | . . . . . . . . . . . . . . . Walls Destroyed . | . . . . . . . . . . . . . . . Machines Disabled . | . . . . . . . . . . . . . . . Actions | -11 -10 -9 -9 -8 -8 -7 -6 -5 -5 -5 -5 -4 -4 -3 --------- Run | Yrd Mat Mat Min Mat Sto Fac Fac Fac Upp Upp Zhi Pro Fac Res Total 9780 | 78 908 763 314 109 1033 1616 612 1358 443 461 231 479 973 402 Wait 1446 | . 102 73 79 24 359 240 29 277 7 42 29 67 106 12 Move 7108 | 62 694 507 226 56 546 1153 535 905 427 413 180 397 691 316 Hop . | . . . . . . . . . . . . . . . Pick Up 147 | 4 15 14 3 . 11 23 9 24 . 1 1 2 24 16 Fast Attach 96 | 7 5 11 . . 11 19 2 16 1 4 6 2 9 3 Attach 75 | . 1 10 1 2 4 11 7 18 . 1 1 1 14 4 Detach 18 | . . 4 . . 3 2 3 1 . . . . 3 2 Swap 75 | . 9 14 1 4 10 9 5 6 . . . . 11 6 Drop 105 | . 17 10 3 . 13 16 7 9 6 . 7 . 8 9 Fire 444 | 3 65 120 1 23 26 96 4 101 2 . . . 3 . Melee 232 | . . . . . 50 37 11 . . . 7 10 83 34 Ram . | . . . . . . . . . . . . . . . Kick . | . . . . . . . . . . . . . . . Crush 3 | 2 . . . . . . . 1 . . . . . . Escape Stasis 21 | . . . . . . . . . . . . . 21 . Rewire 10 | . . . . . . 10 . . . . . . . . Trap . | . . . . . . . . . . . . . . . Miscellaneous . | . . . . . . . . . . . . . . . Route ------- -11/Scrapyard -10/Materials (discovered 4 exits: *Mat x3 / [*Min]) -9/Materials -9/Mines (discovered 2 exits: *Mat x2) -8/Materials (discovered 2 exits: Fac / *Sto) -8/Storage (discovered 2 exits: *Fac / [Rec]) -7/Factory (discovered 4 exits: *Fac x4) -6/Factory -5/Factory -5/Upper Caves -5/Upper Caves -5/Zhirov -4/Proximity Caves -4/Factory -3/Research History --------- Turn | Location | Event 17 | -11/Scrapyard | Discovered new exit (range 16) 118 | -11/Scrapyard | Entered Materials 309 | -10/Materials | Build established: Mutant 524 | -10/Materials | Discovered new exit (range 14) 732 | -10/Materials | Discovered new exit (range 7) 1106 | -10/Materials | Discovered new exit (range 4) 1516 | -10/Materials | Repaired Imp. Terrain Scanner 1524 | -10/Materials | Discovered new exit (range 12) 1546 | -10/Materials | Entered another Materials area 1546 | -9/Materials | Evolved 2 slots: Propulsion x1, Utility x1 1600 | -9/Materials | Lost 3 parts (2n1u) 1996 | -9/Materials | Lost 3 parts (1p1n1w) 2292 | -9/Materials | Repaired Lgt. Treads 2700 | -9/Materials | Core integrity fell below 50% 2751 | -9/Materials | Discovered new exit (range 13) 2756 | -9/Materials | Destroyed 7 combat bots 2787 | -9/Materials | Entered Mines 2790 | -9/Mines | Assisted by bots powering up and referring to "LRC-V3" 2815 | -9/Mines | Learned Materials terminal intel 2822 | -9/Mines | Discovered new exit (range 15) 2856 | -9/Mines | Learned location of 1 exit from Materials 2906 | -9/Mines | Learned Materials terminal intel 2918 | -9/Mines | Found a damaged Exp. Sensor Array with a note attached 2921 | -9/Mines | Found Prototype Device 2962 | -9/Mines | Lost 3 allies 3119 | -9/Mines | Found a Scrap Suit stashed away for nefarious purposes 3123 | -9/Mines | Found Scrap Suit 3149 | -9/Mines | Discovered new exit (range 6) 3203 | -9/Mines | Entered Materials 3203 | -8/Materials | Accompanied by 2 allies 3203 | -8/Materials | Evolved 2 slots: Propulsion x1, Utility x1 3204 | -8/Materials | Identified exit to Factory 3205 | -8/Materials | Loaded intel: 12 terminal locations 3208 | -8/Materials | Led the pair of lost Derelicts to an unsafe place 3325 | -8/Materials | Discovered new exit (range 16) 3363 | -8/Materials | Entered Storage 3404 | -8/Storage | Identified Exp. Sensor Array 3869 | -8/Storage | Assisted by bots powering up and referring to "LRC-V3" 3947 | -8/Storage | Allied Derelicts emerged from ambush trap array 4032 | -8/Storage | Garrison activated, responded to threat 4048 | -8/Storage | Discovered new exit (range 15) 4111 | -8/Storage | Lost 5 allies 4151 | -8/Storage | Repaired Assault Cannon 4182 | -8/Storage | Build established: Commander-Assassin 4649 | -8/Storage | Discovered exit to Factory (range 17) 4751 | -8/Storage | Repaired Hover Unit 4772 | -8/Storage | Build established: Assassin 4790 | -8/Storage | Met a pair of Derelict thieves 4835 | -8/Storage | Core integrity fell below 50% 4843 | -8/Storage | Lost 6 allies 4853 | -8/Storage | Core integrity fell below 20% 4866 | -8/Storage | Destroyed 9 combat bots 4867 | -8/Storage | Entered Factory 4867 | -7/Factory | Evolved 2 slots: Power x1, Utility x1 4870 | -7/Factory | Lost 4 parts (3n1u) 5108 | -7/Factory | Build established: Mutant 5571 | -7/Factory | Lost 3 parts (2p1n) 6077 | -7/Factory | Identified exit to Factory 6520 | -7/Factory | Core integrity fell below 50% 6918 | -7/Factory | Repaired Adv. Treads 7318 | -7/Factory | Entered another Factory area 7318 | -6/Factory | Evolved 2 slots: Propulsion x1, Utility x1 7727 | -6/Factory | Discovered new exit (range 4) 7730 | -6/Factory | Identified exit to Factory 7731 | -6/Factory | Entered another Factory area 7731 | -5/Factory | Evolved 2 slots: Utility x2 7886 | -5/Factory | Repaired Lrg. Storage Unit 8613 | -5/Factory | Lost 3 parts (1p1n1u) 8729 | -5/Factory | Lost 8 parts (1p2n3u2w) 8935 | -5/Factory | Repaired Antigrav System 9191 | -5/Factory | Lost 3 parts (1p1n1u) 9614 | -5/Factory | System corruption reached 10% 9642 | -5/Factory | Lost 3 parts (1p1u1w) 9971 | -5/Factory | Discovered new exit (range 11) 9995 | -5/Factory | Identified exit to Upper Caves 10029 | -5/Factory | Entered Upper Caves 10884 | -5/Upper Caves | Attracted the attention of an 0b10 outpost 10979 | -5/Upper Caves | Discovered new exit (range 3) 10980 | -5/Upper Caves | Identified exit to Upper Caves 10981 | -5/Upper Caves | Entered another Upper Caves area 10982 | -5/Upper Caves | Lost 3 parts (2n1u) 11021 | -5/Upper Caves | Encountered a Warlord checkpoint 11026 | -5/Upper Caves | Learned Factory stockpile data 11377 | -5/Upper Caves | Discovered new exit (range 15) 11392 | -5/Upper Caves | Identified exit to Zhirov 11393 | -5/Upper Caves | Entered Zhirov 11393 | -5/Zhirov | Discovered new exit (range 3) 11414 | -5/Zhirov | Met Zhirov 11438 | -5/Zhirov | Learned location of Quarantine (-2) 11438 | -5/Zhirov | Learned location of Testing (-3) 11438 | -5/Zhirov | Learned location of Command (-1) 11461 | -5/Zhirov | Zhirov requested help retrieving the SGEMP Prototype 11483 | -5/Zhirov | Found Alien Artifact 11658 | -5/Zhirov | Identified exit to Proximity Caves 11661 | -5/Zhirov | Entered Proximity Caves 11843 | -4/Proximity Caves | Attracted the attention of an 0b10 checkpoint 11849 | -4/Proximity Caves | Identified Integrated Dissipator 11849 | -4/Proximity Caves | Installed Integrated Dissipator, increased core heat dissipation (+20) 11948 | -4/Proximity Caves | Identified exit to Factory 12075 | -4/Proximity Caves | Spotted B-86 Titan 12212 | -4/Proximity Caves | Entered Factory 12212 | -4/Factory | Evolved 2 slots: Utility x1, Weapon x1 12601 | -4/Factory | Build established: Hacker-Mutant 12926 | -4/Factory | Crushed by falling debris 13144 | -4/Factory | Noticed a derelict Sapper rigging charges 13260 | -4/Factory | System corruption reached 10% 13307 | -4/Factory | Discovered new exit (range 16) 13314 | -4/Factory | Lost 4 parts (1p2n1u) 13341 | -4/Factory | Identified exit to Research 13341 | -4/Factory | Entered Research 13341 | -3/Research | Evolved 2 slots: Utility x2 13365 | -3/Research | Lost 4 parts (4n) 13595 | -3/Research | Self-destructed Last Messages --------------- 13564_ P-80 Master destroyed. 13565_ Acquired 31 matter. 13567_ Sneak attack on K-01 Serf. 13567_ K-01 Serf destroyed. 13571_ Acquired Imp. Antigrav System. 13572_ Acquired 10 matter. 13579_ 7XVPVCJLFCPLP>=